fUST/lending_fUST_20260602
["ID","MTS","AMOUNT","RATE_DAILY","PERIOD"]
[423732976,1780347042000,-500.0,0.00013972,2]
[423732974,1780347042000,-500.0,0.00013972,2]
[423732978,1780347042000,-306.54,0.00013972,2]
[423732979,1780347042000,-500.0,0.00013972,2]
[423732980,1780347042000,-500.0,0.00013972,2]
[423732988,1780347042000,-3467.84,0.00013972,2]
[423732983,1780347042000,-500.0,0.00013972,2]
[423732982,1780347042000,-503.2857313,0.00013972,2]
[423732986,1780347042000,-500.0,0.00013972,2]
[423732987,1780347042000,-909.71,0.00013972,2]
[423732990,1780347042000,-2476.41,0.00013972,2]
[423732984,1780347042000,-500.0,0.00013972,2]
[423732981,1780347042000,-500.0,0.00013972,2]
[423732989,1780347042000,-381.14,0.00013972,2]
[423732985,1780347042000,-500.92115628,0.00013972,2]
[423733004,1780347042000,-1685.97,0.00013972,2]
[423732998,1780347042000,-682.34,0.00013972,2]
[423732997,1780347042000,-500.0,0.00013972,2]
[423733003,1780347042000,-500.0,0.00013972,2]
[423732994,1780347042000,-500.0,0.00013972,2]
[423733002,1780347042000,-796.67,0.00013972,2]
[423733016,1780347042000,-500.0,0.00013972,2]
[423732995,1780347042000,-500.0,0.00013972,2]
[423732996,1780347042000,-500.0,0.00013972,2]
[423732992,1780347042000,-500.0,0.00013972,2]
[423732993,1780347042000,-500.0,0.00013972,2]
[423732991,1780347042000,-1019.21,0.00013972,2]
[423733000,1780347042000,-500.0,0.00013972,2]
[423733001,1780347042000,-1835.69,0.00013972,2]
[423732999,1780347042000,-708.35,0.00013972,2]
[423733039,1780347042000,-151.0,0.00013992,2]
[423733079,1780347042000,-500.0,0.00014246,2]
[423733046,1780347042000,-151.0,0.00013992,2]
[423733086,1780347042000,-500.0,0.00014246,2]
[423733087,1780347042000,-500.0,0.00014246,2]
[423733073,1780347042000,-500.0,0.00014246,2]
[423733083,1780347042000,-1019.21,0.00014246,2]
[423733078,1780347042000,-509.66,0.00014246,2]
[423733077,1780347042000,-500.0,0.00014246,2]
[423733080,1780347042000,-909.71,0.00014246,2]
[423733081,1780347042000,-3467.84,0.00014246,2]
[423733082,1780347042000,-2476.41,0.00014246,2]
[423733089,1780347042000,-682.34,0.00014246,2]
[423733100,1780347042000,-500.0,0.00014246,2]
[423733099,1780347042000,-516.54,0.00014246,2]
[423733088,1780347042000,-500.0,0.00014246,2]
[423733090,1780347042000,-708.35,0.00014246,2]
[423733085,1780347042000,-270.4556629,0.00014246,2]
[423733101,1780347042000,-515.48,0.00014246,2]
[423733095,1780347042000,-1685.97,0.00014246,2]
[423733096,1780347042000,-1740.0,0.00014246,2]
[423733094,1780347042000,-500.0,0.00014246,2]
[423733097,1780347042000,-500.0,0.00014246,2]
[423733098,1780347042000,-531.05,0.00014246,2]
[423733093,1780347042000,-796.67,0.00014246,2]
[423733092,1780347042000,-1835.69,0.00014246,2]
[423733103,1780347042000,-417.36645303,0.00014246,2]
[423733105,1780347042000,-500.0,0.00014246,2]
[423733102,1780347042000,-791.12,0.00014246,2]
[423733104,1780347042000,-500.0,0.00014246,2]
[423733042,1780347042000,-151.0,0.00013992,2]
[423733108,1780347042000,-500.0,0.00014246,2]
[423733106,1780347042000,-2637.39,0.00014246,2]
[423733091,1780347042000,-500.0,0.00014246,2]
[423733075,1780347042000,-356.8499505,0.00014246,2]
[423733107,1780347042000,-500.0,0.00014246,2]
[423733084,1780347042000,-500.0,0.00014246,2]
[423733054,1780347042000,-461.72283662,0.00014009,2]
[423733051,1780347042000,-44850.1810891,0.00014,2]
[423733053,1780347042000,-210.51563773,0.00014002,2]
[423733052,1780347042000,-50575.9243867,0.00014,2]
[423733055,1780347042000,-3294.97688383,0.00014058,2]
[423733049,1780347042000,-200.0,0.00013999,2]
[423733056,1780347042000,-598.44665625,0.00014068,2]
[423733050,1780347042000,-200.0,0.00013999,2]
[423733047,1780347042000,-151.0,0.00013992,2]
[423733048,1780347042000,-151.82056477,0.00013992,2]
[423733044,1780347042000,-151.0,0.00013992,2]
[423733043,1780347042000,-151.0,0.00013992,2]
[423733045,1780347042000,-151.0,0.00013992,2]
[423733076,1780347042000,-400.0,0.00014246,2]
[423733058,1780347042000,-1915.0293,0.00014068,2]
[423733057,1780347042000,-1077.20398125,0.00014068,2]
[423733041,1780347042000,-151.0,0.00013992,2]
[423733059,1780347042000,-2992.23328125,0.00014068,2]
[423733063,1780347042000,-200.0,0.00014245,2]
[423733070,1780347042000,-500.0,0.00014246,2]
[423733071,1780347042000,-500.0,0.00014246,2]
[423733069,1780347042000,-1049.31,0.00014246,2]
[423733065,1780347042000,-500.0,0.00014246,2]
[423733066,1780347042000,-500.0,0.00014246,2]
[423733074,1780347042000,-500.0,0.00014246,2]
[423733068,1780347042000,-500.0,0.00014246,2]
[423733072,1780347042000,-454.89360505,0.00014246,2]
[423733060,1780347042000,-4304.50710908,0.00014068,2]
[423733064,1780347042000,-500.0,0.00014246,2]
[423733062,1780347042000,-466.675,0.00014191,2]
[423733067,1780347042000,-500.0,0.00014246,2]
[423733061,1780347042000,-461.72283662,0.00014146,2]
[423733156,1780347043000,-1685.97,0.0001452,2]
[423733160,1780347043000,-500.0,0.0001452,2]
[423733159,1780347043000,-516.54,0.0001452,2]
[423733151,1780347043000,-708.35,0.0001452,2]
[423733153,1780347043000,-1835.69,0.0001452,2]
[423733150,1780347043000,-682.34,0.0001452,2]
[423733148,1780347043000,-500.0,0.0001452,2]
[423733149,1780347043000,-500.0,0.0001452,2]
[423733145,1780347043000,-1019.21,0.0001452,2]
[423733158,1780347043000,-500.0,0.0001452,2]
[423733161,1780347043000,-515.48,0.0001452,2]
[423733152,1780347043000,-500.0,0.0001452,2]
[423733157,1780347043000,-1740.0,0.0001452,2]
[423733163,1780347043000,-500.0,0.0001452,2]
[423733172,1780347043000,-500.0,0.0001452,2]
[423733166,1780347043000,-500.0,0.0001452,2]
[423733162,1780347043000,-791.12,0.0001452,2]
[423733171,1780347043000,-724.3464,0.0001452,2]
[423733167,1780347043000,-500.0,0.0001452,2]
[423733169,1780347043000,-558.66,0.0001452,2]
[423733164,1780347043000,-500.0,0.0001452,2]
[423733168,1780347043000,-511.83,0.0001452,2]
[423733165,1780347043000,-2637.39,0.0001452,2]
[423733174,1780347043000,-500.0,0.0001452,2]
[423733173,1780347043000,-973.07,0.0001452,2]
[423733184,1780347043000,-200.0,0.00014532,2]
[423733147,1780347043000,-500.0,0.0001452,2]
[423733186,1780347043000,-500.0,0.00014533,2]
[423733170,1780347043000,-500.0,0.0001452,2]
[423733155,1780347043000,-500.0,0.0001452,2]
[423733119,1780347043000,-500.0,0.00014246,2]
[423733146,1780347043000,-500.0,0.0001452,2]
[423733176,1780347043000,-701.38,0.0001452,2]
[423733113,1780347043000,-500.0,0.00014246,2]
[423733115,1780347043000,-500.0,0.00014246,2]
[423733114,1780347043000,-973.07,0.00014246,2]
[423733109,1780347043000,-511.83,0.00014246,2]
[423733111,1780347043000,-500.0,0.00014246,2]
[423733110,1780347043000,-558.66,0.00014246,2]
[423733112,1780347043000,-724.3464,0.00014246,2]
[423733118,1780347043000,-701.38,0.00014246,2]
[423733116,1780347043000,-13655.75,0.00014246,2]
[423733131,1780347043000,-392.26,0.0001452,2]
[423733129,1780347043000,-200.0,0.00014519,2]
[423733132,1780347043000,-500.0,0.0001452,2]
[423733130,1780347043000,-187.18686091,0.0001452,2]
[423733127,1780347043000,-1078.55439045,0.00014288,2]
[423733123,1780347043000,-209.71611797,0.00014259,2]
[423733120,1780347043000,-151.5,0.00014259,2]
[423733134,1780347043000,-500.0,0.0001452,2]
[423733144,1780347043000,-2476.41,0.0001452,2]
[423733136,1780347043000,-500.0,0.0001452,2]
[423733139,1780347043000,-500.0,0.0001452,2]
[423733133,1780347043000,-500.0,0.0001452,2]
[423733138,1780347043000,-500.0,0.0001452,2]
[423733141,1780347043000,-500.0,0.0001452,2]
[423733135,1780347043000,-1049.31,0.0001452,2]
[423733137,1780347043000,-500.0,0.0001452,2]
[423733140,1780347043000,-500.0,0.0001452,2]
[423733142,1780347043000,-909.71,0.0001452,2]
[423733143,1780347043000,-3467.84,0.0001452,2]
[423733154,1780347043000,-796.67,0.0001452,2]
[423733187,1780347043000,-500.0,0.00014533,2]
[423733185,1780347043000,-500.0,0.00014533,2]
[423733177,1780347043000,-500.0,0.00014523,2]
[423733208,1780347043000,-500.0,0.00014533,2]
[423733215,1780347043000,-500.0,0.00014533,2]
[423733218,1780347043000,-500.0,0.00014533,2]
[423733217,1780347043000,-500.0,0.00014533,2]
[423733219,1780347043000,-500.67845505,0.00014533,2]
[423733216,1780347043000,-500.0,0.00014533,2]
[423733220,1780347043000,-500.0,0.00014533,2]
[423733224,1780347043000,-500.0,0.00014533,2]
[423733223,1780347043000,-500.0,0.00014533,2]
[423733221,1780347043000,-500.0,0.00014533,2]
[423733222,1780347043000,-500.0,0.00014533,2]
[423733225,1780347043000,-500.0,0.00014533,2]
[423733227,1780347043000,-500.0,0.00014533,2]
[423733226,1780347043000,-208.61564439,0.00014533,2]
[423733237,1780347043000,-500.0,0.00014533,2]
[423733238,1780347043000,-500.0,0.00014533,2]
[423733228,1780347043000,-500.0,0.00014533,2]
[423733234,1780347043000,-500.0,0.00014533,2]
[423733233,1780347043000,-417.24811089,0.00014533,2]
[423733229,1780347043000,-500.0,0.00014533,2]
[423733232,1780347043000,-500.0,0.00014533,2]
[423733236,1780347043000,-500.0,0.00014533,2]
[423733231,1780347043000,-500.66916647,0.00014533,2]
[423733230,1780347043000,-477.51431663,0.00014533,2]
[423733235,1780347043000,-500.0,0.00014533,2]
[423733240,1780347043000,-500.0,0.00014533,2]
[423733239,1780347043000,-500.0,0.00014533,2]
[423733241,1780347043000,-500.0,0.00014533,2]
[423733175,1780347043000,-13655.75,0.0001452,2]
[423733205,1780347043000,-500.0,0.00014533,2]
[423733209,1780347043000,-500.0,0.00014533,2]
[423733242,1780347043000,-345.80442385,0.00014533,2]
[423733206,1780347043000,-500.0,0.00014533,2]
[423733207,1780347043000,-500.0,0.00014533,2]
[423733178,1780347043000,-575.89054036,0.0001453,2]
[423733179,1780347043000,-500.0,0.00014531,2]
[423733243,1780347043000,-733.29,0.00014533,2]
[423733181,1780347043000,-500.0,0.00014532,2]
[423733183,1780347043000,-690.68,0.00014532,2]
[423733182,1780347043000,-858.8,0.00014532,2]
[423733190,1780347043000,-500.0,0.00014533,2]
[423733188,1780347043000,-434.72381734,0.00014533,2]
[423733191,1780347043000,-643.94,0.00014533,2]
[423733197,1780347043000,-649.65110222,0.00014533,2]
[423733194,1780347043000,-500.0,0.00014533,2]
[423733198,1780347043000,-500.0,0.00014533,2]
[423733199,1780347043000,-500.0,0.00014533,2]
[423733180,1780347043000,-500.0,0.00014531,2]
[423733189,1780347043000,-500.0,0.00014533,2]
[423733204,1780347043000,-500.0,0.00014533,2]
[423733200,1780347043000,-500.0,0.00014533,2]
[423733214,1780347043000,-500.0,0.00014533,2]
[423733212,1780347043000,-500.29625024,0.00014533,2]
[423733211,1780347043000,-500.28062496,0.00014533,2]
[423733201,1780347043000,-500.0,0.00014533,2]
[423733213,1780347043000,-552.61995317,0.00014533,2]
[423733210,1780347043000,-500.0,0.00014533,2]
[423733202,1780347043000,-502.00161589,0.00014533,2]
[423733196,1780347043000,-500.0,0.00014533,2]
[423733192,1780347043000,-500.0,0.00014533,2]
[423733203,1780347043000,-500.0,0.00014533,2]
[423733195,1780347043000,-500.0,0.00014533,2]
[423733193,1780347043000,-500.0,0.00014533,2]
[423733280,1780347044000,-500.0,0.00014533,2]
[423733283,1780347044000,-500.0,0.00014533,2]
[423733286,1780347044000,-500.0,0.00014533,2]
[423733281,1780347044000,-500.0,0.00014533,2]
[423733279,1780347044000,-500.0,0.00014533,2]
[423733284,1780347044000,-500.0,0.00014533,2]
[423733277,1780347044000,-500.0,0.00014533,2]
[423733288,1780347044000,-500.0,0.00014533,2]
[423733289,1780347044000,-500.0,0.00014533,2]
[423733278,1780347044000,-500.0,0.00014533,2]
[423733275,1780347044000,-500.0,0.00014533,2]
[423733282,1780347044000,-500.0,0.00014533,2]
[423733285,1780347044000,-500.0,0.00014533,2]
[423733290,1780347044000,-500.0,0.00014533,2]
[423733291,1780347044000,-500.0,0.00014533,2]
[423733293,1780347044000,-500.0,0.00014533,2]
[423733301,1780347044000,-500.0,0.00014533,2]
[423733302,1780347044000,-500.0,0.00014533,2]
[423733292,1780347044000,-508.36540295,0.00014533,2]
[423733295,1780347044000,-500.0,0.00014533,2]
[423733294,1780347044000,-500.0,0.00014533,2]
[423733299,1780347044000,-500.0,0.00014533,2]
[423733296,1780347044000,-500.0,0.00014533,2]
[423733297,1780347044000,-500.0,0.00014533,2]
[423733298,1780347044000,-151.0,0.00014533,2]
[423733273,1780347044000,-559.13576128,0.00014533,2]
[423733300,1780347044000,-500.0,0.00014533,2]
[423733287,1780347044000,-427.0,0.00014533,2]
[423733272,1780347044000,-500.0,0.00014533,2]
[423733265,1780347044000,-500.0,0.00014533,2]
[423733270,1780347044000,-500.0,0.00014533,2]
[423733304,1780347044000,-500.0,0.00014533,2]
[423733251,1780347044000,-500.0,0.00014533,2]
[423733250,1780347044000,-500.0,0.00014533,2]
[423733252,1780347044000,-632.93314454,0.00014533,2]
[423733249,1780347044000,-500.0,0.00014533,2]
[423733245,1780347044000,-500.0,0.00014533,2]
[423733244,1780347044000,-500.0,0.00014533,2]
[423733247,1780347044000,-500.0,0.00014533,2]
[423733246,1780347044000,-500.0,0.00014533,2]
[423733254,1780347044000,-500.0,0.00014533,2]
[423733266,1780347044000,-500.0,0.00014533,2]
[423733259,1780347044000,-500.0,0.00014533,2]
[423733263,1780347044000,-500.0,0.00014533,2]
[423733258,1780347044000,-500.0,0.00014533,2]
[423733264,1780347044000,-500.0,0.00014533,2]
[423733253,1780347044000,-502.12079355,0.00014533,2]
[423733255,1780347044000,-500.0,0.00014533,2]
[423733261,1780347044000,-500.0,0.00014533,2]
[423733256,1780347044000,-392.05618562,0.00014533,2]
[423733257,1780347044000,-500.0,0.00014533,2]
[423733260,1780347044000,-500.0,0.00014533,2]
[423733262,1780347044000,-785.84,0.00014533,2]
[423733268,1780347044000,-500.0,0.00014533,2]
[423733267,1780347044000,-500.0,0.00014533,2]
[423733276,1780347044000,-500.0,0.00014533,2]
[423733269,1780347044000,-500.0,0.00014533,2]
[423733271,1780347044000,-500.0,0.00014533,2]
[423733274,1780347044000,-500.0,0.00014533,2]
[423733303,1780347044000,-500.0,0.00014533,2]
[423733248,1780347044000,-500.0,0.00014533,2]
[423733306,1780347044000,-500.45,0.00014533,2]
[423733332,1780347044000,-500.0,0.00014533,2]
[423733336,1780347044000,-500.0,0.00014533,2]
[423733334,1780347044000,-500.0,0.00014533,2]
[423733337,1780347044000,-500.0,0.00014533,2]
[423733344,1780347044000,-500.0,0.00014533,2]
[423733355,1780347044000,-623.53674622,0.00014533,2]
[423733357,1780347044000,-501.81024904,0.00014533,2]
[423733343,1780347044000,-500.0,0.00014533,2]
[423733354,1780347044000,-500.0,0.00014533,2]
[423733356,1780347044000,-502.01584976,0.00014533,2]
[423733345,1780347044000,-500.0,0.00014533,2]
[423733351,1780347044000,-500.0,0.00014533,2]
[423733352,1780347044000,-500.0,0.00014533,2]
[423733339,1780347044000,-500.0,0.00014533,2]
[423733346,1780347044000,-500.0,0.00014533,2]
[423733350,1780347044000,-500.0,0.00014533,2]
[423733347,1780347044000,-500.0,0.00014533,2]
[423733348,1780347044000,-500.0,0.00014533,2]
[423733349,1780347044000,-500.0,0.00014533,2]
[423733358,1780347044000,-500.0,0.00014533,2]
[423733361,1780347044000,-366.75344365,0.00014534,2]
[423733359,1780347044000,-500.0,0.00014533,2]
[423733360,1780347044000,-505.00000006,0.00014533,2]
[423733362,1780347044000,-152.0,0.0001456,2]
[423733366,1780347044000,-151.0,0.000146,2]
[423733365,1780347044000,-151.0,0.000146,2]
[423733364,1780347044000,-151.0,0.000146,2]
[423733309,1780347044000,-500.0,0.00014533,2]
[423733353,1780347044000,-500.0,0.00014533,2]
[423733338,1780347044000,-500.0,0.00014533,2]
[423733367,1780347044000,-152.0,0.00014628,2]
[423733333,1780347044000,-500.0,0.00014533,2]
[423733335,1780347044000,-500.0,0.00014533,2]
[423733312,1780347044000,-500.0,0.00014533,2]
[423733310,1780347044000,-500.0,0.00014533,2]
[423733307,1780347044000,-500.0,0.00014533,2]
[423733311,1780347044000,-500.0,0.00014533,2]
[423733308,1780347044000,-226.41364325,0.00014533,2]
[423733313,1780347044000,-500.0,0.00014533,2]
[423733315,1780347044000,-500.0,0.00014533,2]
[423733314,1780347044000,-500.0,0.00014533,2]
[423733316,1780347044000,-500.0,0.00014533,2]
[423733318,1780347044000,-487.2654754,0.00014533,2]
[423733328,1780347044000,-500.0,0.00014533,2]
[423733319,1780347044000,-500.0,0.00014533,2]
[423733317,1780347044000,-500.0,0.00014533,2]
[423733305,1780347044000,-500.0,0.00014533,2]
[423733320,1780347044000,-502.60095045,0.00014533,2]
[423733331,1780347044000,-500.0,0.00014533,2]
[423733329,1780347044000,-500.0,0.00014533,2]
[423733341,1780347044000,-500.0,0.00014533,2]
[423733340,1780347044000,-500.0,0.00014533,2]
[423733321,1780347044000,-500.0,0.00014533,2]
[423733330,1780347044000,-500.0,0.00014533,2]
[423733342,1780347044000,-500.0,0.00014533,2]
[423733325,1780347044000,-500.0,0.00014533,2]
[423733324,1780347044000,-500.0,0.00014533,2]
[423733327,1780347044000,-500.0,0.00014533,2]
[423733326,1780347044000,-500.0,0.00014533,2]
[423733323,1780347044000,-500.0,0.00014533,2]
[423733322,1780347044000,-292.27867845,0.00014533,2]
[423733417,1780347045000,-500.0,0.00014794,2]
[423733413,1780347045000,-500.0,0.00014794,2]
[423733414,1780347045000,-515.48,0.00014794,2]
[423733412,1780347045000,-516.54,0.00014794,2]
[423733400,1780347045000,-500.0,0.00014794,2]
[423733410,1780347045000,-1740.0,0.00014794,2]
[423733409,1780347045000,-1685.97,0.00014794,2]
[423733404,1780347045000,-708.35,0.00014794,2]
[423733407,1780347045000,-796.67,0.00014794,2]
[423733403,1780347045000,-682.34,0.00014794,2]
[423733411,1780347045000,-500.0,0.00014794,2]
[423733418,1780347045000,-2637.39,0.00014794,2]
[423733421,1780347045000,-511.83,0.00014794,2]
[423733416,1780347045000,-500.0,0.00014794,2]
[423733420,1780347045000,-500.0,0.00014794,2]
[423733430,1780347045000,-500.0,0.00014805,2]
[423733419,1780347045000,-500.0,0.00014794,2]
[423733422,1780347045000,-558.66,0.00014794,2]
[423733427,1780347045000,-500.0,0.00014794,2]
[423733424,1780347045000,-724.3464,0.00014794,2]
[423733431,1780347045000,-500.0,0.00014805,2]
[423733425,1780347045000,-500.0,0.00014794,2]
[423733423,1780347045000,-500.0,0.00014794,2]
[423733408,1780347045000,-500.0,0.00014794,2]
[423733426,1780347045000,-973.07,0.00014794,2]
[423733415,1780347045000,-791.12,0.00014794,2]
[423733401,1780347045000,-533.52,0.00014794,2]
[423733384,1780347045000,-201.36735355,0.00014793,2]
[423733405,1780347045000,-500.0,0.00014794,2]
[423733429,1780347045000,-701.38,0.00014794,2]
[423733380,1780347045000,-200.0,0.00014777,2]
[423733381,1780347045000,-42200.4666455,0.00014778,2]
[423733377,1780347045000,-715.2913841,0.00014719,2]
[423733374,1780347045000,-151.0,0.00014678,2]
[423733376,1780347045000,-151.0,0.000147,2]
[423733378,1780347045000,-1243.1510329,0.00014719,2]
[423733379,1780347045000,-179.7232312,0.00014719,2]
[423733375,1780347045000,-153.40804,0.00014678,2]
[423733383,1780347045000,-466.675,0.00014788,2]
[423733393,1780347045000,-500.0,0.00014794,2]
[423733392,1780347045000,-500.0,0.00014794,2]
[423733394,1780347045000,-500.0,0.00014794,2]
[423733395,1780347045000,-909.71,0.00014794,2]
[423733382,1780347045000,-1039.7168087,0.00014778,2]
[423733391,1780347045000,-500.0,0.00014794,2]
[423733388,1780347045000,-500.0,0.00014794,2]
[423733386,1780347045000,-500.0,0.00014794,2]
[423733389,1780347045000,-1049.31,0.00014794,2]
[423733387,1780347045000,-500.0,0.00014794,2]
[423733385,1780347045000,-500.0,0.00014794,2]
[423733390,1780347045000,-500.0,0.00014794,2]
[423733398,1780347045000,-1019.21,0.00014794,2]
[423733397,1780347045000,-2476.41,0.00014794,2]
[423733396,1780347045000,-3467.84,0.00014794,2]
[423733402,1780347045000,-500.0,0.00014794,2]
[423733399,1780347045000,-500.0,0.00014794,2]
[423733406,1780347045000,-1835.69,0.00014794,2]
[423733428,1780347045000,-13655.75,0.00014794,2]
[423733435,1780347045000,-151.0,0.00014806,2]
[423733433,1780347045000,-151.0,0.00014806,2]
[423733468,1780347045000,-500.0,0.00014807,2]
[423733466,1780347045000,-500.0,0.00014807,2]
[423733467,1780347045000,-500.0,0.00014807,2]
[423733465,1780347045000,-500.0,0.00014807,2]
[423733470,1780347045000,-733.29,0.00014807,2]
[423733482,1780347045000,-500.0,0.00014807,2]
[423733481,1780347045000,-500.0,0.00014807,2]
[423733471,1780347045000,-500.0,0.00014807,2]
[423733473,1780347045000,-500.0,0.00014807,2]
[423733474,1780347045000,-500.0,0.00014807,2]
[423733483,1780347045000,-500.0,0.00014807,2]
[423733472,1780347045000,-500.0,0.00014807,2]
[423733460,1780347045000,-500.0,0.00014807,2]
[423733477,1780347045000,-500.0,0.00014807,2]
[423733476,1780347045000,-500.0,0.00014807,2]
[423733479,1780347045000,-500.0,0.00014807,2]
[423733478,1780347045000,-500.0,0.00014807,2]
[423733475,1780347045000,-500.42464554,0.00014807,2]
[423733484,1780347045000,-785.84,0.00014807,2]
[423733490,1780347045000,-584.84,0.00014807,2]
[423733486,1780347045000,-500.0,0.00014807,2]
[423733488,1780347045000,-500.0,0.00014807,2]
[423733487,1780347045000,-500.0,0.00014807,2]
[423733438,1780347045000,-690.68,0.00014806,2]
[423733489,1780347045000,-500.0,0.00014807,2]
[423733491,1780347045000,-500.0,0.00014807,2]
[423733480,1780347045000,-500.0,0.00014807,2]
[423733463,1780347045000,-500.0,0.00014807,2]
[423733485,1780347045000,-500.0,0.00014807,2]
[423733464,1780347045000,-442.24155616,0.00014807,2]
[423733461,1780347045000,-500.0,0.00014807,2]
[423733434,1780347045000,-151.0,0.00014806,2]
[423733437,1780347045000,-858.8,0.00014806,2]
[423733442,1780347045000,-192.38,0.00014807,2]
[423733432,1780347045000,-200.0,0.00014805,2]
[423733440,1780347045000,-340.21,0.00014807,2]
[423733441,1780347045000,-500.0,0.00014807,2]
[423733443,1780347045000,-500.0,0.00014807,2]
[423733436,1780347045000,-151.0,0.00014806,2]
[423733439,1780347045000,-500.0,0.00014807,2]
[423733446,1780347045000,-500.0,0.00014807,2]
[423733448,1780347045000,-500.0,0.00014807,2]
[423733457,1780347045000,-500.0,0.00014807,2]
[423733444,1780347045000,-500.0,0.00014807,2]
[423733449,1780347045000,-500.0,0.00014807,2]
[423733450,1780347045000,-500.0,0.00014807,2]
[423733469,1780347045000,-500.0,0.00014807,2]
[423733459,1780347045000,-158.66594916,0.00014807,2]
[423733455,1780347045000,-500.28130502,0.00014807,2]
[423733454,1780347045000,-500.0,0.00014807,2]
[423733462,1780347045000,-500.0,0.00014807,2]
[423733452,1780347045000,-500.0,0.00014807,2]
[423733453,1780347045000,-500.0,0.00014807,2]
[423733447,1780347045000,-500.0,0.00014807,2]
[423733458,1780347045000,-500.0,0.00014807,2]
[423733456,1780347045000,-500.0,0.00014807,2]
[423733451,1780347045000,-500.0,0.00014807,2]
[423733445,1780347045000,-500.0,0.00014807,2]
[423733518,1780347046000,-500.0,0.00014807,2]
[423733530,1780347046000,-500.0,0.00014807,2]
[423733522,1780347046000,-500.0,0.00014807,2]
[423733521,1780347046000,-500.0,0.00014807,2]
[423733523,1780347046000,-500.0,0.00014807,2]
[423733524,1780347046000,-500.0,0.00014807,2]
[423733526,1780347046000,-500.0,0.00014807,2]
[423733528,1780347046000,-500.0,0.00014807,2]
[423733529,1780347046000,-252.34563867,0.00014807,2]
[423733527,1780347046000,-563.29658134,0.00014807,2]
[423733525,1780347046000,-500.0,0.00014807,2]
[423733546,1780347046000,-500.0,0.00014807,2]
[423733532,1780347046000,-500.0,0.00014807,2]
[423733531,1780347046000,-361.15243636,0.00014807,2]
[423733534,1780347046000,-500.0,0.00014807,2]
[423733536,1780347046000,-500.0,0.00014807,2]
[423733537,1780347046000,-500.0,0.00014807,2]
[423733540,1780347046000,-501.86852882,0.00014807,2]
[423733539,1780347046000,-500.0,0.00014807,2]
[423733538,1780347046000,-500.0,0.00014807,2]
[423733535,1780347046000,-500.0,0.00014807,2]
[423733541,1780347046000,-500.0,0.00014807,2]
[423733519,1780347046000,-500.0,0.00014807,2]
[423733533,1780347046000,-604.54738571,0.00014807,2]
[423733520,1780347046000,-500.0,0.00014807,2]
[423733507,1780347046000,-500.0,0.00014807,2]
[423733516,1780347046000,-403.13321532,0.00014807,2]
[423733492,1780347046000,-500.0,0.00014807,2]
[423733495,1780347046000,-500.0,0.00014807,2]
[423733494,1780347046000,-500.0,0.00014807,2]
[423733493,1780347046000,-589.08701475,0.00014807,2]
[423733496,1780347046000,-500.0,0.00014807,2]